bitfinex/quotes_ETHUSD_20241123
["timestamp","ask_amount","ask_price","bid_price","bid_amount"]
[1732333148764,0.8254,3327.0,3325.7,1.29571799]
[1732333148982,0.8254,3327.0,3326.4,0.05886714]
[1732333149200,0.8254,3327.0,3325.7,1.29571799]
[1732333149900,0.8254,3326.8,3325.8,0.05888822]
[1732333150194,1.29571799,3326.5,3325.8,0.05888822]
[1732333150401,0.8254,3326.4,3325.1,1.29571799]
[1732333150588,0.8254,3326.3,3324.9,0.00758255]
[1732333150898,0.99048,3326.2,3324.9,0.00758255]
[1732333151200,0.8254,3326.2,3325.4,0.00758255]
[1732333151561,0.8254,3326.2,3325.5,0.05889758]
[1732333151787,0.8254,3326.2,3325.5,2.82871986]
[1732333152498,0.8254,3326.2,3325.5,2.79865087]
[1732333152658,0.8254,3326.2,3325.7,0.83698255]
[1732333152856,0.8254,3326.2,3325.8,0.05888703]
[1732333153259,0.8254,3326.2,3325.9,0.55]
[1732333153461,0.8254,3326.2,3326.0,0.05888]
[1732333154098,0.8254,3326.5,3326.0,0.05888]
[1732333154269,0.8254,3326.5,3326.2,0.2992]
[1732333154598,5.0,3328.5,3326.4,0.2992]
[1732333154599,0.8254,3327.7,3326.4,0.2992]
[1732333154959,0.8254,3327.7,3326.5,0.05888466]
[1732333155359,0.8254,3327.7,3326.6,0.55]
[1732333155665,0.8254,3327.7,3327.1,0.2992]
[1732333155866,0.8254,3327.7,3327.2,0.05889541]
[1732333156188,0.8254,3327.7,3327.1,0.2992]
[1732333156411,0.01,3329.3,3328.2,8.0246]
[1732333156592,2.73975329,3328.4,3327.2,0.0589036]
[1732333156777,2.73975329,3328.4,3328.3,0.05886496]
[1732333156987,2.73975329,3328.4,3327.1,0.2992]
[1732333157287,2.73975329,3328.4,3327.2,0.0589249]
[1732333157512,0.27397533,3328.3,3327.0,0.8492]
[1732333157719,0.27397533,3328.3,3327.3,0.05887272]
[1732333157882,0.27397533,3328.3,3327.1,0.05894173]
[1732333158083,0.30137286,3328.2,3327.1,0.05894173]
[1732333158929,0.30137286,3328.2,3327.2,0.05695785]
[1732333159534,0.8218,3327.8,3327.3,0.05693897]
[1732333159822,0.8218,3327.4,3327.3,0.05693897]
[1732333160163,0.8218,3327.4,3325.9,0.2992]
[1732333160323,0.8218,3327.4,3325.9,0.30678255]
[1732333160525,0.8218,3327.2,3326.0,0.05509674]
[1732333160881,0.8218,3327.2,3326.1,0.55]
[1732333161217,0.8218,3327.2,3326.3,0.55]
[1732333161631,0.8218,3327.2,3326.4,0.05507554]
[1732333162129,0.8218,3327.2,3326.3,0.55]
[1732333163093,0.8218,3327.2,3325.6,4.59028937]
[1732333163436,3.0,3327.1,3325.7,0.05510967]
[1732333163619,0.7542,3326.9,3325.7,0.05510967]
[1732333163931,0.7542,3326.9,3325.8,0.05510639]
[1732333164348,0.7542,3326.9,3325.3,0.2992]
[1732333164844,0.7542,3326.9,3325.5,0.55]
[1732333165046,0.7542,3326.9,3325.6,0.05510526]
[1732333165536,3.7542,3326.7,3325.6,0.05510526]
[1732333165741,0.7542,3326.5,3325.6,0.05510526]
[1732333166050,0.7542,3326.5,3324.8,3.00758255]
[1732333166201,0.7542,3326.5,3324.9,0.05510483]
[1732333166602,0.7542,3326.5,3325.0,0.55]
[1732333166845,0.7542,3326.5,3325.1,0.0550978]
[1732333167138,0.7542,3326.5,3325.2,0.55]
[1732333167537,0.7542,3326.5,3325.3,0.05509077]
[1732333169006,0.7542,3326.5,3325.4,0.55]
[1732333169427,0.7542,3326.5,3325.5,0.05524537]
[1732333169850,0.7542,3326.5,3325.6,0.55]
[1732333170521,0.7542,3326.5,3325.7,0.05522661]
[1732333170907,0.7542,3326.5,3325.6,0.55]
[1732333171226,0.7542,3326.5,3325.7,0.05522778]
[1732333171438,0.7542,3326.5,3325.6,0.55]
[1732333171648,0.7542,3326.5,3325.7,0.05522778]
[1732333171829,0.7542,3326.5,3325.6,0.55]
[1732333172031,0.7542,3326.5,3325.7,0.05522778]
[1732333172215,0.7542,3326.5,3325.3,0.8242]
[1732333172417,0.7542,3326.5,3325.4,0.60523833]
[1732333174822,0.7542,3326.5,3325.6,0.00758255]
[1732333175067,0.7542,3326.5,3325.7,0.05522778]
[1732333175630,0.7542,3326.5,3325.9,0.8074]
[1732333175827,0.7542,3326.5,3326.0,0.60521723]
[1732333177074,5.0,3328.5,3326.1,0.00758255]
[1732333177075,0.7537,3328.1,3326.1,0.00758255]
[1732333177368,0.7537,3328.1,3326.2,0.05521734]
[1732333177545,0.7537,3328.1,3326.3,0.55]
[1732333177927,2.73975329,3327.8,3326.4,0.05528981]
[1732333178228,0.7537,3327.6,3326.4,0.05528981]
[1732333178761,0.7537,3327.6,3326.3,0.55]
[1732333179136,0.7537,3327.6,3326.2,0.00758255]
[1732333179336,0.7537,3327.6,3326.4,0.05531089]
[1732333179551,0.7537,3327.6,3326.3,0.0553144]
[1732333179759,0.7537,3327.6,3326.6,0.55]
[1732333180146,0.7537,3327.6,3326.7,0.05515284]
[1732333180528,0.7537,3327.6,3326.6,0.55]
[1732333180932,0.7537,3327.6,3326.7,0.05515284]
[1732333183183,0.7951,3327.3,3326.7,0.05515284]
[1732333183380,0.7951,3327.3,3325.7,0.00758255]
[1732333183728,0.7951,3327.3,3325.9,0.55]
[1732333184173,0.7951,3327.3,3326.1,0.55]
[1732333184466,0.7951,3327.3,3325.6,3.54965329]
[1732333184467,0.7951,3327.1,3326.2,0.05516175]
[1732333184667,0.7951,3327.1,3325.5,0.00758255]
[1732333184982,0.7951,3326.9,3325.6,0.05518284]
[1732333185150,1.17461,3326.8,3325.6,0.05518284]
[1732333185348,0.7951,3326.7,3325.6,0.05518284]
[1732333186131,0.7951,3326.7,3325.7,0.55]
[1732333186568,0.7951,3326.7,3325.8,0.05520912]
[1732333186789,3.7951,3326.6,3324.8,0.00758255]
[1732333186994,0.7951,3326.4,3325.9,0.0533653]
[1732333187154,0.7951,3326.4,3324.6,0.00758255]
[1732333187490,3.7951,3326.2,3324.7,0.05155276]
[1732333187798,0.7951,3326.1,3324.7,0.05155276]
[1732333188154,0.7951,3326.1,3324.5,0.36254788]
[1732333188454,0.7951,3326.1,3324.2,0.00758255]
[1732333188794,0.7951,3326.1,3324.3,0.05156564]
[1732333189377,3.0,3325.8,3324.3,0.05156564]
[1732333189553,0.7951,3325.6,3324.3,0.05156564]
[1732333190498,3.0,3325.4,3324.3,0.05156564]
[1732333190653,3.0,3325.4,3323.7,0.00758255]
[1732333190654,0.7951,3325.3,3323.7,0.00758255]
[1732333190849,0.7951,3325.3,3323.8,0.05184631]
[1732333191094,0.7951,3325.1,3323.8,0.05184631]
[1732333191896,0.7951,3325.1,3323.5,0.81748255]
[1732333192066,0.7951,3325.1,3323.6,0.05185454]
[1732333192271,0.7951,3325.0,3323.6,0.05185454]
[1732333192453,0.7951,3324.8,3323.2,0.8099]
[1732333192667,0.7951,3324.8,3323.4,0.00758255]
[1732333192852,0.7951,3324.8,3323.5,0.05185806]
[1732333193499,0.7951,3324.8,3323.7,0.00758255]
[1732333198698,0.7951,3324.8,3323.3,0.55]
[1732333198699,0.7951,3324.8,3323.5,0.00758255]
[1732333198857,0.7951,3324.8,3323.6,0.05010844]
[1732333199055,0.7951,3324.8,3323.4,0.00758255]
[1732333199259,0.7951,3324.8,3323.5,0.05011196]
[1732333201814,0.35348533,3324.9,3323.5,0.05011196]
[1732333201815,0.8192,3324.5,3323.5,0.05011196]
[1732333202312,0.8192,3324.5,3323.1,0.55]
[1732333202673,0.8192,3324.5,3323.2,0.05054235]
[1732333203207,0.8192,3324.5,3323.3,0.55758255]
[1732333203507,0.8192,3324.5,3323.4,0.05054939]
[1732333203686,0.8192,3324.5,3323.4,0.05813194]
[1732333204411,3.56247023,3324.5,3323.4,0.05054939]
[1732333204584,0.8192,3324.3,3323.4,0.05054939]
[1732333204789,0.8192,3324.3,3322.8,0.00758255]
[1732333205924,0.8192,3324.3,3322.8,0.03767445]
[1732333206072,0.8192,3324.3,3322.8,0.03767444]
[1732333206272,0.8192,3324.3,3322.8,0.00758255]
[1732333206474,0.8192,3324.1,3322.8,0.03767444]
[1732333206768,0.8192,3324.1,3322.9,0.55]
[1732333206970,0.8192,3324.1,3323.3,0.00758255]
[1732333207201,0.8192,3324.1,3323.4,0.55]
[1732333207421,0.8192,3324.1,3323.4,0.05058145]
[1732333209584,0.8192,3324.1,3323.4,0.00758255]
[1732333209900,0.8192,3324.1,3323.5,0.05055352]
[1732333210479,0.75655646,3325.3,3323.6,0.78178255]
[1732333210480,0.8192,3324.7,3323.6,0.78178255]
[1732333210679,0.8192,3324.7,3323.8,0.00758255]
[1732333210884,0.8192,3324.7,3323.9,0.05054179]
[1732333212293,0.8192,3324.7,3323.6,0.78178255]
[1732333212493,0.8192,3324.7,3323.9,0.00758255]
[1732333212805,0.8192,3324.7,3324.0,0.05050111]
[1732333213000,0.8192,3324.7,3324.1,0.00758255]
[1732333213207,0.8192,3324.7,3324.3,0.00758255]
[1732333213414,0.7791,3326.0,3324.6,0.00758255]
[1732333213617,2.74327023,3326.1,3324.6,0.00758255]
[1732333213618,0.7791,3325.8,3324.6,0.00758255]
[1732333213986,0.7791,3325.8,3324.7,0.05042391]
[1732333215427,0.7791,3325.8,3324.6,0.00758255]
[1732333215727,0.7791,3325.8,3324.3,0.55]
[1732333215936,0.7529,3325.5,3324.5,0.00758255]
[1732333216133,0.37529,3325.4,3324.7,0.00758255]
[1732333216341,0.7529,3325.5,3324.8,0.87881564]
[1732333216709,0.7529,3325.5,3324.9,0.00758255]
[1732333216915,0.01,3327.1,3324.9,0.00758255]
[1732333216916,0.7529,3326.2,3325.5,0.00758255]
[1732333217219,0.7529,3326.2,3325.6,0.05038394]
[1732333217746,0.7529,3326.2,3325.7,0.05038042]
[1732333218108,0.7529,3326.2,3325.0,0.00758255]
[1732333218633,0.7529,3326.2,3324.9,0.55]
[1732333218634,0.7529,3326.2,3325.1,0.05040152]
[1732333219205,0.7529,3326.2,3324.8,0.83598255]
[1732333219842,0.7529,3326.2,3325.0,0.00758255]
[1732333220444,0.7529,3326.2,3324.8,0.83598255]
[1732333221399,0.7529,3326.2,3325.0,0.00758255]
[1732333222241,0.7529,3326.2,3325.2,0.00758255]
[1732333222535,0.7529,3326.2,3325.3,0.8284]
[1732333223203,0.7529,3326.2,3325.4,0.03765338]
[1732333223419,0.7529,3326.2,3325.4,0.00758255]
[1732333223618,0.7529,3326.2,3325.5,0.0500442]
[1732333224733,0.7529,3326.2,3325.3,0.8284]
[1732333225676,0.7529,3326.2,3325.4,0.00758255]
[1732333226439,0.7529,3326.2,3325.4,0.03765255]
[1732333226637,0.7529,3326.2,3325.4,0.00758255]
[1732333226850,0.7529,3326.2,3325.5,0.04997057]
[1732333227882,3.0,3327.0,3325.5,0.04997057]
[1732333228064,1.40319813,3326.9,3325.5,0.04997057]
[1732333228266,1.40319813,3326.9,3325.4,0.00758255]
[1732333228602,1.40319813,3326.9,3325.7,0.00758255]
[1732333229671,0.243574,3326.2,3325.7,0.00758255]
[1732333230071,0.243574,3326.2,3325.8,0.0499636]
[1732333230752,0.243574,3326.2,3325.4,0.00758255]
[1732333231777,0.243574,3326.2,3325.7,0.00758255]
[1732333233054,0.243574,3326.2,3325.3,0.83598255]
[1732333233440,0.243574,3326.2,3325.4,0.08770549]
[1732333233634,0.243574,3326.2,3325.3,0.83598255]
[1732333234077,0.243574,3326.2,3325.7,0.00758255]
[1732333234262,0.243574,3326.2,3325.8,0.5287]
[1732333234435,0.243574,3326.2,3324.4,0.03006742]
[1732333234436,0.243574,3326.2,3325.3,0.00758255]
[1732333234643,0.7529,3326.1,3325.9,0.08767913]
[1732333234845,0.7529,3326.1,3325.0,0.00758255]
[1732333235325,0.3996474,3326.0,3325.0,0.00758255]
[1732333237259,0.3996474,3326.0,3325.0,0.82278255]
[1732333238080,0.3996474,3326.0,3325.4,0.00758255]
[1732333238265,0.7529,3326.1,3325.4,0.00758255]
[1732333238472,0.7529,3326.1,3325.0,0.52308255]
[1732333243700,0.7529,3326.1,3324.1,0.8152]
[1732333243897,0.7908,3325.9,3324.3,0.8152]
[1732333245207,0.7908,3325.9,3324.5,0.8152]
[1732333248614,0.7908,3325.9,3323.8,0.2992]
[1732333248615,0.7908,3325.7,3324.1,0.55]
[1732333248802,0.7908,3325.5,3324.0,0.8152]
[1732333253104,0.7908,3325.5,3324.2,0.8152]
[1732333253300,0.7908,3325.5,3324.3,0.08501065]
[1732333263008,0.7908,3325.5,3324.0,0.816]
[1732333264739,0.7908,3325.5,3324.1,2.74062621]
[1732333264912,0.7908,3325.5,3324.2,0.44070458]
[1732333265655,0.7908,3325.5,3324.2,0.08504196]
[1732333266027,0.7908,3325.5,3324.6,0.816]
[1732333266361,0.7908,3325.5,3324.9,2.74062621]
[1732333266511,0.7908,3325.5,3325.0,0.08502526]
[1732333266951,0.8091,3326.1,3325.0,0.08502526]
[1732333267246,0.8091,3326.1,3325.1,0.03007045]
[1732333267448,0.99018398,3326.1,3325.1,2.77069666]
[1732333267651,0.8091,3326.1,3325.2,0.08500966]
[1732333268124,0.8091,3326.1,3325.5,2.74062621]
[1732333268322,0.243574,3326.2,3325.7,0.816]
[1732333268525,0.243574,3326.2,3325.8,0.08489667]
[1732333269119,0.243574,3326.2,3325.8,2.82552288]
[1732333271038,0.8091,3326.4,3325.8,0.08489667]
[1732333271452,0.8091,3326.4,3325.5,2.74062621]
[1732333271679,0.8091,3326.4,3325.9,0.084833]
[1732333271974,0.8091,3326.4,3326.0,0.08482913]
[1732333272157,0.8091,3326.4,3325.5,2.74062621]
[1732333272335,0.8091,3326.4,3325.6,0.08484773]
[1732333277953,0.8091,3326.4,3325.6,0.39746116]
[1732333278175,0.8091,3326.4,3325.8,0.8213]
[1732333278370,0.7642,3327.7,3325.9,0.08464129]
[1732333278684,0.7642,3327.5,3326.0,0.03006183]
[1732333278856,0.7642,3327.5,3326.2,2.74062621]
[1732333279387,0.7642,3327.5,3326.3,0.93597925]
[1732333279544,0.7642,3327.5,3326.4,0.36766055]
[1732333279749,0.7642,3327.5,3326.5,0.08458314]
[1732333280792,0.7642,3327.5,3326.5,2.85526742]
[1732333280946,0.7642,3327.5,3326.5,0.08458314]
[1732333281145,0.7642,3327.5,3326.4,0.55]
[1732333281357,0.7642,3327.5,3326.5,0.08454723]
[1732333282288,0.7642,3327.5,3326.2,2.74062621]
[1732333282495,0.7642,3327.5,3326.6,0.08451437]
[1732333282794,0.7642,3327.5,3326.7,0.08451742]
[1732333283291,0.7642,3327.5,3326.2,3.09406883]
[1732333283463,0.7642,3327.5,3326.8,0.08451277]
[1732333283650,0.7642,3327.5,3326.2,3.09406883]
[1732333283850,0.7642,3327.5,3326.9,0.08450813]
[1732333284083,0.7642,3327.5,3326.2,3.09406883]
[1732333284299,0.7642,3327.5,3327.0,0.08450977]
[1732333284477,0.7642,3327.5,3326.2,3.09406883]
[1732333284858,0.7642,3327.5,3326.3,0.08453601]
[1732333286016,0.8316,3327.4,3326.3,0.08453601]
[1732333286164,0.98905232,3327.3,3326.3,0.08453601]
[1732333286364,0.8316,3327.3,3326.3,0.08453601]
[1732333287594,0.8316,3327.3,3326.4,0.58005789]
[1732333287785,0.8316,3327.3,3326.5,0.0845244]
[1732333289098,0.8316,3327.3,3326.6,0.7938]
[1732333289463,0.8316,3327.3,3326.7,0.08444013]
[1732333289666,0.8316,3327.3,3326.4,0.55]
[1732333290304,0.8316,3327.3,3326.5,0.08445569]
[1732333291562,0.8316,3327.3,3326.1,0.55]
[1732333291809,0.8316,3327.3,3326.2,0.41352969]
[1732333293580,0.8316,3327.3,3326.2,0.08446707]
[1732333294304,0.8316,3327.3,3325.6,2.74062621]
[1732333294511,0.8316,3327.3,3326.3,0.08447835]
[1732333294674,0.8316,3327.3,3325.6,2.74062621]
[1732333294873,0.8316,3327.3,3326.4,0.0844737]
[1732333295115,0.8043,3327.1,3325.6,2.74062621]
[1732333295442,0.8043,3327.1,3325.7,0.08450625]
[1732333298801,0.8043,3327.1,3325.8,0.58006578]
[1732333299003,0.8043,3327.1,3326.0,2.74062621]
[1732333299236,0.8043,3327.1,3326.1,0.36701362]
[1732333299406,0.8043,3327.1,3326.2,0.0300605]
[1732333299804,0.8043,3327.1,3326.3,0.08450335]
[1732333300333,0.8043,3327.1,3326.1,0.28251356]
[1732333300489,0.8043,3327.1,3326.4,0.08457279]
[1732333300693,0.8043,3327.1,3326.1,0.28251356]
[1732333301004,0.8043,3327.1,3326.2,0.03006105]
[1732333301191,0.8043,3327.1,3326.3,0.08457744]
[1732333301387,0.8043,3327.1,3326.1,0.28251356]
[1732333301588,0.8043,3327.1,3326.2,0.38689607]
[1732333301821,0.8043,3327.1,3326.3,0.7774]
[1732333302029,0.8043,3327.1,3326.3,0.89203879]
[1732333302594,0.8043,3327.1,3326.4,2.74062621]
[1732333302795,0.8043,3327.1,3326.5,0.44782992]
[1732333304636,0.7876,3328.2,3326.5,0.44782992]
[1732333308354,0.7876,3328.2,3326.5,0.08456342]
[1732333315635,3.0,3328.1,3326.5,0.08456342]
[1732333315949,0.7841,3328.0,3326.5,0.08456342]
[1732333317327,0.7841,3328.0,3326.0,2.74062621]
[1732333317615,0.7841,3327.8,3326.0,2.74062621]
[1732333317816,0.7841,3327.8,3326.1,0.08449451]
[1732333318110,3.0,3327.7,3326.1,0.08449451]
[1732333318343,3.0,3327.7,3325.8,0.03006106]
[1732333318344,0.7841,3327.6,3325.8,0.03006106]
[1732333318519,0.57406262,3327.6,3325.8,0.03006106]
[1732333318724,0.7841,3327.5,3325.9,0.08450224]
[1732333319120,0.7841,3327.5,3326.0,2.77068738]
[1732333319322,0.7841,3327.5,3326.4,2.74062621]
[1732333319737,0.7841,3327.5,3326.5,0.08447272]
[1732333321419,0.7841,3327.5,3326.0,2.77068486]
[1732333321613,0.7841,3327.5,3326.1,0.08449132]
[1732333322350,0.7841,3327.5,3326.1,0.47377307]
[1732333329297,0.7841,3327.5,3326.1,0.08449132]
[1732333329509,0.7841,3327.5,3325.6,3.03982621]
[1732333329510,0.7841,3327.5,3326.0,2.74062621]
[1732333329795,0.7841,3327.5,3326.2,0.08453328]
[1732333329973,0.7841,3327.5,3326.3,0.03005952]
[1732333330177,0.7841,3327.5,3326.3,0.11458972]
[1732333330792,0.7841,3327.5,3326.5,1.29572442]
[1732333331251,0.7841,3327.5,3326.6,0.08451625]
[1732333331887,0.7841,3327.5,3326.2,1.29572442]
[1732333332085,0.7841,3327.5,3326.7,0.08451189]
[1732333332414,3.0,3327.8,3326.2,1.29572442]
[1732333332415,1.29572442,3327.4,3326.2,0.2992]
[1732333332593,0.7937,3327.3,3326.8,0.08451647]
[1732333332756,0.7937,3327.3,3325.4,0.03005975]
[1732333332757,0.7937,3327.1,3325.8,0.2992]
[1732333333153,0.7937,3327.1,3325.9,0.0845599]
[1732333333459,0.7937,3327.1,3325.5,0.2992]
[1732333333658,0.7937,3327.1,3326.0,0.08455524]
[1732333333858,0.7937,3327.1,3325.6,0.03006635]
[1732333334093,0.7937,3327.1,3326.1,0.08454902]
[1732333334250,0.7937,3327.1,3325.6,0.03006635]
[1732333334450,0.7937,3327.1,3326.2,0.08454594]
[1732333334655,0.7937,3327.1,3326.2,0.2992]
[1732333334855,0.7937,3327.1,3326.3,0.08459745]
[1732333335655,0.7937,3327.1,3325.8,3.03769509]
[1732333335858,0.7937,3327.1,3326.4,0.08459123]
[1732333336084,0.7937,3327.1,3325.8,3.06775833]
[1732333336267,0.7937,3327.1,3326.5,0.08458815]
[1732333336486,0.7937,3327.1,3326.0,0.2992]
[1732333336831,0.7937,3327.1,3326.6,0.08458193]
[1732333337128,0.7937,3327.1,3326.0,0.2992]
[1732333337311,0.7937,3327.1,3326.7,0.08457728]
[1732333337489,0.7937,3327.1,3326.1,0.2992]
[1732333337685,0.7937,3327.1,3326.8,0.08457263]
[1732333337930,0.7937,3327.1,3326.4,0.03005764]
[1732333338094,0.7937,3327.1,3326.9,0.08455402]
[1732333338321,0.7937,3327.1,3326.0,0.27685574]
[1732333338322,0.01,3326.7,3323.0,1.24817589]
[1732333338631,0.01,3326.7,3322.8,1.87226383]
[1732333338632,0.7819,3325.8,3323.4,2.73849509]
[1732333338789,0.81195771,3325.7,3323.5,0.03008026]
[1732333338983,0.81195771,3325.7,3323.6,0.30677754]
[1732333339500,0.81195771,3325.7,3323.7,0.06781983]
[1732333339921,0.81195771,3325.7,3323.8,3.28849509]
[1732333340117,0.81195771,3325.7,3324.2,2.73849509]
[1732333340321,0.81195771,3325.7,3324.3,0.30392486]
[1732333340538,0.81195771,3325.7,3324.3,0.37183225]
[1732333340990,0.7769,3325.5,3324.3,0.3417569]
[1732333341212,0.30943439,3325.4,3324.3,0.3417569]
[1732333341537,0.27937668,3325.3,3324.3,0.3417569]
[1732333341697,0.27937668,3325.2,3324.4,0.31103273]
[1732333341897,0.27937668,3325.1,3324.4,0.37893476]
[1732333342128,0.27937668,3325.0,3324.4,0.37893476]
[1732333342435,1.05627668,3324.9,3324.4,0.37893476]
[1732333342639,0.27937668,3324.8,3324.4,0.06790203]
[1732333343036,0.27937668,3324.7,3324.2,2.73849509]
[1732333343340,0.27937668,3324.6,3324.2,2.73849509]
[1732333343512,0.27937668,3324.5,3324.3,0.06790383]
[1732333343711,0.27937668,3324.4,3323.9,0.85437534]
[1732333343898,0.7769,3324.9,3323.9,1.26866238]
[1732333343899,0.27937668,3324.8,3323.9,1.26866238]
[1732333344099,0.2789063,3324.7,3323.9,1.26866238]
[1732333344349,0.2789063,3324.6,3323.9,1.26866238]
[1732333344642,0.2789063,3324.5,3324.0,0.40071575]
[1732333344845,0.2789063,3324.8,3324.1,0.0300762]
[1732333345047,0.2789063,3324.7,3324.1,0.0300762]
[1732333345201,0.7769,3324.9,3324.1,0.0300762]
[1732333345202,0.2789063,3324.6,3324.1,0.0300762]
[1732333345403,0.2789063,3324.5,3324.1,0.0300762]
[1732333345743,0.2789063,3324.4,3324.1,0.0300762]
[1732333345909,0.7769,3324.9,3324.1,0.0300762]
[1732333346105,0.27871893,3324.8,3324.1,0.0300762]
[1732333347307,0.27871893,3324.8,3324.0,0.40071575]
[1732333348089,0.27862849,3324.7,3324.0,0.40071575]
[1732333348348,0.27862849,3324.6,3324.0,0.40071575]
[1732333348507,0.27862849,3324.8,3324.0,0.40071575]
[1732333348847,0.27862849,3324.7,3324.0,0.40071575]
[1732333349050,0.27862849,3324.6,3324.0,0.40071575]
[1732333349237,0.27853013,3324.5,3324.0,0.40071575]
[1732333349743,0.27853013,3324.4,3324.0,0.40071575]
[1732333350038,0.27853013,3324.3,3324.0,0.40071575]
[1732333350251,0.7769,3324.9,3324.0,0.40071575]
[1732333350414,0.27849551,3324.8,3324.0,0.40071575]
[1732333354006,0.27849551,3324.8,3324.1,0.06811865]
[1732333355029,0.7769,3324.9,3324.1,0.06811865]
[1732333355030,0.27849364,3324.7,3324.1,0.06811865]
[1732333355237,0.27849364,3324.6,3324.1,0.06811865]
[1732333355441,0.27849364,3324.5,3324.1,0.06811865]
[1732333355668,0.27849364,3324.4,3324.2,0.06810002]
[1732333355831,0.7769,3324.9,3324.0,0.03007767]
[1732333356137,0.27852333,3324.8,3324.1,0.06810625]
[1732333356332,0.03005771,3324.7,3323.2,0.8288]
[1732333356545,0.27852333,3324.6,3324.2,0.06810159]
[1732333356754,0.27852333,3324.6,3323.3,0.58008]
[1732333356960,0.27852333,3324.5,3324.3,0.06809536]
[1732333357168,0.27852333,3324.4,3323.5,0.03007999]
[1732333357338,0.27852333,3324.3,3323.5,0.03007999]
[1732333357675,0.27852333,3324.2,3323.5,0.03007999]
[1732333357880,0.27852333,3324.1,3323.6,0.8288]
[1732333358052,0.7769,3324.9,3323.7,0.03008037]
[1732333358372,0.27862069,3324.8,3323.7,0.03008037]
[1732333358887,0.7769,3324.9,3323.7,0.03008037]
[1732333358888,0.27861915,3324.7,3323.7,0.03008037]
[1732333359037,0.7769,3324.9,3323.7,0.03008037]
[1732333359377,0.27861217,3324.8,3323.7,0.03008037]
[1732333360369,0.27861217,3324.8,3323.8,0.8288]
[1732333360550,0.27861217,3324.8,3323.9,0.03007827]
[1732333362384,0.7769,3324.9,3323.9,0.03007827]
[1732333362546,0.27904068,3324.8,3323.9,0.03007827]
[1732333364379,0.27904068,3324.7,3323.9,0.03007827]
[1732333364586,0.27904068,3324.6,3323.9,0.03007827]
[1732333364783,0.27904068,3324.5,3323.9,0.03007827]
[1732333365083,0.27904068,3324.4,3323.9,0.03007827]
[1732333365385,0.27904068,3324.3,3323.9,0.03007827]
[1732333365685,0.27904068,3324.2,3323.8,0.8288]
[1732333365885,0.27904068,3324.8,3323.8,0.8288]
[1732333366100,0.27904068,3324.7,3323.8,0.8288]
[1732333366389,0.27904068,3324.6,3323.8,0.8288]
[1732333366761,0.27904068,3324.5,3323.8,0.8288]
[1732333366955,0.27904068,3324.4,3323.8,0.8288]
[1732333367176,0.27904068,3324.3,3323.8,0.8288]
[1732333367373,0.27904068,3324.2,3323.8,0.8288]
[1732333367544,0.27904068,3324.1,3323.9,0.0681969]
[1732333367745,0.27904068,3324.0,3323.9,0.0681969]
[1732333368862,0.27539827,3324.0,3323.9,0.0681969]
[1732333369892,0.03005771,3324.8,3323.9,0.0681969]
[1732333370186,0.03005771,3324.8,3323.8,0.8288]
[1732333370546,0.7769,3324.9,3323.8,0.8288]
[1732333371052,0.03005771,3324.8,3323.8,0.8288]
[1732333371389,0.7769,3324.9,3323.9,0.03007999]
[1732333372385,0.7769,3324.9,3323.8,0.8288]
[1732333373452,0.03005771,3324.8,3323.8,0.8288]
[1732333374870,0.03005771,3324.8,3321.3,0.8288]
[1732333374871,2.74089223,3324.0,3321.3,0.8288]
[1732333375070,2.74089223,3324.0,3321.5,0.7879]
[1732333375071,0.7756,3323.7,3321.5,0.7879]
[1732333375293,0.7756,3323.7,3321.2,0.01]
[1732333375294,0.03005771,3323.6,3321.6,0.87941808]
[1732333375495,0.80565771,3323.7,3321.6,0.87941808]
[1732333375695,0.80565771,3323.7,3321.6,0.81799395]
[1732333375896,0.80565771,3323.7,3321.7,0.06141947]
[1732333376097,0.80565771,3323.7,3321.9,0.7879]
[1732333376297,0.80565771,3323.7,3322.0,0.03009294]
[1732333376569,0.7756,3323.7,3322.0,0.03009294]
[1732333377177,0.7756,3323.7,3322.1,0.7879]
[1732333377378,0.7756,3323.7,3322.2,0.03009247]
[1732333379978,0.03005771,3323.6,3322.2,0.03009247]
[1732333380177,0.03005771,3323.6,3322.3,0.06138915]
[1732333380377,0.7756,3323.7,3322.4,0.0300925]
[1732333381020,0.27936348,3323.6,3322.4,0.0300925]
[1732333381176,0.7756,3323.7,3322.4,0.0300925]
[1732333381177,0.27936348,3323.5,3322.4,0.0300925]
[1732333381515,0.27936348,3323.4,3322.2,0.03009215]
[1732333381718,0.27936348,3323.3,3322.2,0.03009215]
[1732333381939,0.27936348,3323.2,3322.2,0.03009215]
[1732333382096,0.27936348,3323.1,3322.2,0.03009215]
[1732333382297,0.27936348,3323.0,3322.2,0.03009215]
[1732333382550,0.27936348,3323.0,3320.8,8.11]
[1732333382551,1.09556348,3322.9,3322.3,0.0613868]
[1732333382824,1.09556348,3322.9,3321.0,0.03009225]
[1732333382825,0.27936348,3322.8,3321.7,0.7584]
[1732333383034,0.8162,3322.9,3321.8,0.03009614]
[1732333383183,0.27920252,3322.8,3321.8,0.03009614]
[1732333383386,0.27920252,3322.8,3321.9,0.06162651]
[1732333383621,0.27920252,3322.8,3322.0,0.03009614]
[1732333384091,0.27920252,3322.8,3322.1,0.06161718]
[1732333385004,0.27920252,3322.8,3321.7,0.78849544]
[1732333385203,0.03005771,3322.7,3322.2,0.0616496]
[1732333385419,0.27920252,3322.6,3321.7,0.7584]
[1732333385589,0.27920252,3322.6,3322.3,0.06190694]
[1732333385786,0.27920252,3322.5,3321.7,0.78849816]
[1732333386038,0.8162,3322.7,3322.4,0.06190228]
[1732333386200,0.8162,3322.5,3321.4,0.7584]
[1732333386403,0.27899589,3322.4,3321.4,0.7584]
[1732333386635,0.27899589,3322.4,3321.5,0.06194424]
[1732333386933,0.27899589,3322.4,3321.4,0.7584]
[1732333387355,0.84625771,3322.3,3320.9,0.7584]
[1732333387493,0.27899589,3322.2,3321.0,0.03010585]
[1732333388786,0.8162,3322.1,3320.9,0.7584]
[1732333388991,0.27899589,3322.0,3321.0,0.03010587]
[1732333389640,0.85383235,3321.9,3320.3,0.54908242]
[1732333389929,0.8162,3321.7,3320.4,0.01511218]
[1732333390138,0.27899589,3321.6,3320.4,0.01511218]
[1732333390309,0.27899589,3321.6,3319.5,0.0251122]
[1732333390310,0.8162,3321.5,3319.5,0.0251122]
[1732333390507,3.0,3321.9,3319.5,0.0151122]